[Event "Titled Tuesday Blitz August 15 Late 2023"]
[White "Lamaze, Simon"]
[Black "brm72"]
[WhiteFideId "36069264"]
[WhiteElo "2721"]
[BlackElo "2469"]
[Result "1-0"]
[Round "2"]
[TimeControl "180+1"]
[Date "2023.08.15"]
[WhiteClock "0:00:42"]
[BlackClock "0:00:07"]
[Board "64"]

1. c4 {[%clk 0:03:00]}  c5 {[%clk 0:02:59]} 2. Nf3 {[%clk 0:02:55]}  Nc6 {[%clk 0:02:59]} 3. Nc3 {[%clk 0:02:55]}  g6 {[%clk 0:02:59]} 4. e3 {[%clk 0:02:56]}  Nf6 {[%clk 0:02:59]} 5. d4 {[%clk 0:02:57]}  cxd4 {[%clk 0:03:00]} 6. exd4 {[%clk 0:02:58]}  d5 {[%clk 0:03:00]} 7. cxd5 {[%clk 0:02:59]}  Nxd5 {[%clk 0:03:01]} 8. Qb3 {[%clk 0:03:00]}  Nxc3 {[%clk 0:03:02]} 9. Bc4 {[%clk 0:03:00]}  Nd5 {[%clk 0:03:02]} 10. Bxd5 {[%clk 0:03:01]}  e6 {[%clk 0:03:03]} 11. Bxc6+ {[%clk 0:03:02]}  bxc6 {[%clk 0:03:04]} 12. O-O {[%clk 0:03:01]}  Qd5 {[%clk 0:03:04]} 13. Qc2 {[%clk 0:03:02]}  f6 {[%clk 0:03:04]} 14. Nd2 {[%clk 0:03:02]}  Kf7 {[%clk 0:02:54]} 15. Rd1 {[%clk 0:02:54]}  Bb7 {[%clk 0:02:51]} 16. Nc4 {[%clk 0:02:17]}  Rd8 {[%clk 0:02:47]} 17. Ne3 {[%clk 0:02:15]}  Qd6 {[%clk 0:02:21]} 18. b3 {[%clk 0:02:11]}  Be7 {[%clk 0:02:19]} 19. Bb2 {[%clk 0:02:10]}  c5 {[%clk 0:01:55]} 20. Rac1 {[%clk 0:01:51]}  cxd4 {[%clk 0:01:46]} 21. Rxd4 {[%clk 0:01:52]}  Qa6 {[%clk 0:01:43]} 22. Ra4 {[%clk 0:01:49]}  Qb6 {[%clk 0:01:40]} 23. Nc4 {[%clk 0:01:45]}  Qc6 {[%clk 0:01:35]} 24. f3 {[%clk 0:01:38]}  Kg7 {[%clk 0:01:10]} 25. Kh1 {[%clk 0:01:29]}  a6 {[%clk 0:00:51]} 26. Ra5 {[%clk 0:01:21]}  Rd7 {[%clk 0:00:47]} 27. h4 {[%clk 0:01:17]}  Rhd8 {[%clk 0:00:40]} 28. Qf2 {[%clk 0:01:07]}  Rd1+ {[%clk 0:00:31]} 29. Rxd1 {[%clk 0:01:00]}  Rxd1+ {[%clk 0:00:32]} 30. Kh2 {[%clk 0:01:01]}  Bb4 {[%clk 0:00:32]} 31. Rg5 {[%clk 0:00:55]}  Bd6+ {[%clk 0:00:20]} 32. Nxd6 {[%clk 0:00:52]}  Qxd6+ {[%clk 0:00:21]} 33. Rg3 {[%clk 0:00:52]}  Rd2 {[%clk 0:00:20]} 34. Qa7 {[%clk 0:00:49]}  Rxb2 {[%clk 0:00:17]} 35. Qxb7+ {[%clk 0:00:49]}  Kh6 {[%clk 0:00:18]} 36. h5 {[%clk 0:00:45]}  Rxa2 {[%clk 0:00:14]} 37. hxg6 {[%clk 0:00:45]}  hxg6 {[%clk 0:00:15]} 38. Qf7 {[%clk 0:00:44]}  g5 {[%clk 0:00:12]} 39. Qxf6+ {[%clk 0:00:42]}  Kh7 {[%clk 0:00:07]} 40. Qxg5 {[%clk 0:00:42]} 1-0


[Site "https://www.chess.com"]

[Event "Titled Tuesday Blitz August 15 Late 2023"]
[White "Arencibia Monduy, Antonio"]
[Black "Kuznetsov, Felix"]
[WhiteFideId "3507939"]
[BlackFideId "34147990"]
[WhiteElo "2467"]
[BlackElo "2718"]
[Result "1/2-1/2"]
[Round "2"]
[TimeControl "180+1"]
[Date "2023.08.15"]
[WhiteClock "0:00:15"]
[BlackClock "0:00:38"]
[Board "65"]

1. e4 {[%clk 0:03:00]}  c5 {[%clk 0:02:59]} 2. Nf3 {[%clk 0:03:00]}  Nc6 {[%clk 0:02:59]} 3. c3 {[%clk 0:03:01]}  d5 {[%clk 0:02:55]} 4. exd5 {[%clk 0:03:01]}  Qxd5 {[%clk 0:02:56]} 5. d4 {[%clk 0:03:01]}  Bg4 {[%clk 0:02:56]} 6. Be2 {[%clk 0:03:02]}  e6 {[%clk 0:02:56]} 7. O-O {[%clk 0:03:02]}  Nf6 {[%clk 0:02:56]} 8. Be3 {[%clk 0:03:01]}  cxd4 {[%clk 0:02:57]} 9. Nxd4 {[%clk 0:03:02]}  Bxe2 {[%clk 0:02:57]} 10. Qxe2 {[%clk 0:03:03]}  Nxd4 {[%clk 0:02:58]} 11. Bxd4 {[%clk 0:03:04]}  Be7 {[%clk 0:02:58]} 12. Rd1 {[%clk 0:03:04]}  Qc6 {[%clk 0:02:59]} 13. Nd2 {[%clk 0:03:02]}  O-O {[%clk 0:02:59]} 14. Nf3 {[%clk 0:03:02]}  Rfd8 {[%clk 0:02:56]} 15. Rd2 {[%clk 0:02:57]}  Qe4 {[%clk 0:02:45]} 16. Qf1 {[%clk 0:02:40]}  Rd5 {[%clk 0:02:37]} 17. Rad1 {[%clk 0:02:39]}  a6 {[%clk 0:02:30]} 18. Bxf6 {[%clk 0:02:26]}  Bxf6 {[%clk 0:02:26]} 19. Rxd5 {[%clk 0:02:25]}  exd5 {[%clk 0:02:27]} 20. Qd3 {[%clk 0:02:12]}  Qxd3 {[%clk 0:02:09]} 21. Rxd3 {[%clk 0:02:13]}  Rd8 {[%clk 0:02:09]} 22. Kf1 {[%clk 0:02:13]}  Kf8 {[%clk 0:02:09]} 23. Ke2 {[%clk 0:02:12]}  Ke7 {[%clk 0:02:10]} 24. Re3+ {[%clk 0:02:03]}  Kd6 {[%clk 0:02:10]} 25. Kd3 {[%clk 0:02:03]}  b5 {[%clk 0:02:08]} 26. a3 {[%clk 0:01:59]}  Rc8 {[%clk 0:02:08]} 27. Nd4 {[%clk 0:01:53]}  g6 {[%clk 0:02:01]} 28. g3 {[%clk 0:01:51]}  Rc4 {[%clk 0:01:52]} 29. Nc2 {[%clk 0:01:41]}  Rc8 {[%clk 0:01:42]} 30. Rf3 {[%clk 0:01:40]}  Ke6 {[%clk 0:01:37]} 31. Nd4+ {[%clk 0:01:40]}  Bxd4 {[%clk 0:01:36]} 32. Kxd4 {[%clk 0:01:41]}  Rc4+ {[%clk 0:01:36]} 33. Kd3 {[%clk 0:01:42]}  Re4 {[%clk 0:01:28]} 34. Re3 {[%clk 0:01:30]}  f5 {[%clk 0:01:05]} 35. f3 {[%clk 0:01:22]}  Rxe3+ {[%clk 0:01:04]} 36. Kxe3 {[%clk 0:01:23]}  g5 {[%clk 0:00:54]} 37. f4 {[%clk 0:01:23]}  g4 {[%clk 0:00:52]} 38. Kd4 {[%clk 0:01:22]}  Kd6 {[%clk 0:00:52]} 39. b3 {[%clk 0:01:18]}  a5 {[%clk 0:00:50]} 40. b4 {[%clk 0:00:20]}  a4 {[%clk 0:00:38]} 41. Ke3 {[%clk 0:00:20]}  Kd7 {[%clk 0:00:37]} 42. Kd3 {[%clk 0:00:20]}  Ke6 {[%clk 0:00:37]} 43. Kd4 {[%clk 0:00:18]}  Kd6 {[%clk 0:00:37]} 44. Kd3 {[%clk 0:00:18]}  Kd7 {[%clk 0:00:37]} 45. Ke3 {[%clk 0:00:16]}  Ke6 {[%clk 0:00:37]} 46. Kd3 {[%clk 0:00:16]}  Kd7 {[%clk 0:00:37]} 47. Ke3 {[%clk 0:00:15]}  Ke6 {[%clk 0:00:37]} 48. Kd3 {[%clk 0:00:15]}  Kd7 {[%clk 0:00:38]} 1/2-1/2


[Site "https://www.chess.com"]

[Event "Titled Tuesday Blitz August 15 Late 2023"]
[White "Timmermans, Mark"]
[Black "Nathan, Nitish"]
[WhiteFideId "1026399"]
[BlackFideId "30927870"]
[WhiteElo "2717"]
[BlackElo "2455"]
[Result "0-1"]
[Round "2"]
[TimeControl "180+1"]
[Date "2023.08.15"]
[WhiteClock "0:00:39"]
[BlackClock "0:01:37"]
[Board "66"]

1. b4 {[%clk 0:02:59]}  d5 {[%clk 0:02:58]} 2. Bb2 {[%clk 0:03:00]}  Bf5 {[%clk 0:02:54]} 3. e3 {[%clk 0:03:00]}  e6 {[%clk 0:02:55]} 4. c4 {[%clk 0:03:00]}  c6 {[%clk 0:02:52]} 5. a4 {[%clk 0:02:59]}  Nf6 {[%clk 0:02:51]} 6. b5 {[%clk 0:02:59]}  Nbd7 {[%clk 0:02:51]} 7. Nf3 {[%clk 0:02:59]}  Bg6 {[%clk 0:02:49]} 8. Be2 {[%clk 0:03:00]}  Bd6 {[%clk 0:02:49]} 9. O-O {[%clk 0:03:00]}  O-O {[%clk 0:02:49]} 10. d4 {[%clk 0:03:01]}  Ne4 {[%clk 0:02:40]} 11. Nc3 {[%clk 0:03:01]}  f5 {[%clk 0:02:39]} 12. Qb3 {[%clk 0:02:54]}  Bh5 {[%clk 0:02:35]} 13. Rad1 {[%clk 0:02:52]}  Bxf3 {[%clk 0:02:34]} 14. Bxf3 {[%clk 0:02:48]}  Kh8 {[%clk 0:02:30]} 15. Ba3 {[%clk 0:02:43]}  dxc4 {[%clk 0:02:18]} 16. Qb2 {[%clk 0:02:43]}  Bxa3 {[%clk 0:02:15]} 17. Qxa3 {[%clk 0:02:44]}  Ndf6 {[%clk 0:02:14]} 18. bxc6 {[%clk 0:02:40]}  bxc6 {[%clk 0:02:13]} 19. Nxe4 {[%clk 0:02:32]}  fxe4 {[%clk 0:02:10]} 20. Be2 {[%clk 0:02:32]}  Nd5 {[%clk 0:01:59]} 21. Bxc4 {[%clk 0:02:32]}  Rf6 {[%clk 0:01:59]} 22. Qc5 {[%clk 0:02:29]}  Rh6 {[%clk 0:01:56]} 23. Qxc6 {[%clk 0:02:26]}  Rc8 {[%clk 0:01:55]} 24. Qa6 {[%clk 0:02:25]}  e5 {[%clk 0:01:51]} 25. Qb7 {[%clk 0:01:36]}  Nc3 {[%clk 0:01:41]} 26. Bb3 {[%clk 0:00:38]}  Ne2+ {[%clk 0:01:38]} 27. Kh1 {[%clk 0:00:38]}  Rxh2+ {[%clk 0:01:38]} 28. Kxh2 {[%clk 0:00:39]}  Qh4# {[%clk 0:01:37]} 0-1


[Site "https://www.chess.com"]

[Event "Titled Tuesday Blitz August 15 Late 2023"]
[White "Romero Ruscalleda, Josep"]
[Black "Gubajdullin, Alexei"]
[WhiteFideId "2231859"]
[BlackFideId "4141202"]
[WhiteElo "2445"]
[BlackElo "2715"]
[Result "1/2-1/2"]
[Round "2"]
[TimeControl "180+1"]
[Date "2023.08.15"]
[WhiteClock "0:01:27"]
[BlackClock "0:01:58"]
[Board "67"]

1. e4 {[%clk 0:03:00]}  g6 {[%clk 0:02:58]} 2. d4 {[%clk 0:03:00]}  d6 {[%clk 0:02:58]} 3. Nc3 {[%clk 0:03:00]}  a6 {[%clk 0:02:58]} 4. a4 {[%clk 0:02:59]}  Bg7 {[%clk 0:02:57]} 5. Nge2 {[%clk 0:02:56]}  Nf6 {[%clk 0:02:56]} 6. g3 {[%clk 0:02:55]}  O-O {[%clk 0:02:56]} 7. Bg2 {[%clk 0:02:56]}  Nbd7 {[%clk 0:02:56]} 8. O-O {[%clk 0:02:55]}  c5 {[%clk 0:02:55]} 9. Bg5 {[%clk 0:02:51]}  cxd4 {[%clk 0:02:55]} 10. Nxd4 {[%clk 0:02:50]}  Ne5 {[%clk 0:02:55]} 11. Nd5 {[%clk 0:02:35]}  Nxd5 {[%clk 0:02:53]} 12. exd5 {[%clk 0:02:35]}  Bg4 {[%clk 0:02:47]} 13. f3 {[%clk 0:02:28]}  Nc4 {[%clk 0:02:23]} 14. fxg4 {[%clk 0:02:18]}  Nxb2 {[%clk 0:02:23]} 15. Qd2 {[%clk 0:02:13]}  h6 {[%clk 0:02:20]} 16. Bxh6 {[%clk 0:02:06]}  Nc4 {[%clk 0:02:17]} 17. Qd3 {[%clk 0:01:50]}  Nb2 {[%clk 0:02:00]} 18. Qd2 {[%clk 0:01:32]}  Nc4 {[%clk 0:02:00]} 19. Qd3 {[%clk 0:01:31]}  Nb2 {[%clk 0:01:58]} 20. Qd2 {[%clk 0:01:27]} 1/2-1/2


[Site "https://www.chess.com"]

[Event "Titled Tuesday Blitz August 15 Late 2023"]
[White "Barp, Alberto"]
[Black "Rego, Pedro Filipe"]
[WhiteFideId "872555"]
[BlackFideId "1904310"]
[WhiteElo "2713"]
[BlackElo "2423"]
[Result "1-0"]
[Round "2"]
[TimeControl "180+1"]
[Date "2023.08.15"]
[WhiteClock "0:01:35"]
[BlackClock "0:00:17"]
[Board "69"]

1. d4 {[%clk 0:02:56]}  Nf6 {[%clk 0:02:59]} 2. Nf3 {[%clk 0:02:55]}  d5 {[%clk 0:02:49]} 3. c4 {[%clk 0:02:53]}  e6 {[%clk 0:02:46]} 4. Nc3 {[%clk 0:02:53]}  c5 {[%clk 0:02:46]} 5. cxd5 {[%clk 0:02:53]}  cxd4 {[%clk 0:02:44]} 6. Qxd4 {[%clk 0:02:50]}  exd5 {[%clk 0:02:44]} 7. e4 {[%clk 0:02:48]}  dxe4 {[%clk 0:02:45]} 8. Qxd8+ {[%clk 0:02:48]}  Kxd8 {[%clk 0:02:46]} 9. Ng5 {[%clk 0:02:47]}  Be6 {[%clk 0:02:45]} 10. Nxe6+ {[%clk 0:02:45]}  fxe6 {[%clk 0:02:46]} 11. Bd2 {[%clk 0:02:29]}  Nc6 {[%clk 0:02:41]} 12. O-O-O {[%clk 0:02:29]}  Be7 {[%clk 0:02:31]} 13. Bh6+ {[%clk 0:02:20]}  Ke8 {[%clk 0:02:25]} 14. Bxg7 {[%clk 0:02:20]}  Rg8 {[%clk 0:02:26]} 15. Bxf6 {[%clk 0:02:19]}  Bxf6 {[%clk 0:02:25]} 16. Nxe4 {[%clk 0:02:20]}  Bg5+ {[%clk 0:02:19]} 17. Kb1 {[%clk 0:02:15]}  Rd8 {[%clk 0:02:00]} 18. Bb5 {[%clk 0:02:12]}  Ke7 {[%clk 0:01:40]} 19. Bxc6 {[%clk 0:02:10]}  bxc6 {[%clk 0:01:40]} 20. Rxd8 {[%clk 0:02:09]}  Kxd8 {[%clk 0:01:39]} 21. Rd1+ {[%clk 0:02:09]}  Kc7 {[%clk 0:01:37]} 22. Nc5 {[%clk 0:02:05]}  Rg6 {[%clk 0:01:26]} 23. b4 {[%clk 0:01:59]}  Kb6 {[%clk 0:01:06]} 24. Kc2 {[%clk 0:01:57]}  Be7 {[%clk 0:01:02]} 25. Nd7+ {[%clk 0:01:52]}  Kb5 {[%clk 0:01:01]} 26. g3 {[%clk 0:01:43]}  Bxb4 {[%clk 0:00:59]} 27. Kb3 {[%clk 0:01:41]}  c5 {[%clk 0:00:55]} 28. a4+ {[%clk 0:01:40]}  Ka5 {[%clk 0:00:50]} 29. Ne5 {[%clk 0:01:36]}  Rg7 {[%clk 0:00:17]} 30. Rd6 {[%clk 0:01:35]} 1-0


[Site "https://www.chess.com"]

[Event "Titled Tuesday Blitz August 15 Late 2023"]
[White "Baghdasaryan, Vahe"]
[Black "Khripachenko, Alexander"]
[WhiteFideId "13303139"]
[BlackFideId "54184975"]
[WhiteElo "2420"]
[BlackElo "2712"]
[Result "0-1"]
[Round "2"]
[TimeControl "180+1"]
[Date "2023.08.15"]
[WhiteClock "0:00:08"]
[BlackClock "0:01:54"]
[Board "70"]

1. e4 {[%clk 0:03:00]}  c5 {[%clk 0:02:53]} 2. c3 {[%clk 0:03:00]}  Nf6 {[%clk 0:02:48]} 3. e5 {[%clk 0:03:00]}  Nd5 {[%clk 0:02:48]} 4. Nf3 {[%clk 0:03:00]}  d6 {[%clk 0:02:47]} 5. d4 {[%clk 0:02:58]}  cxd4 {[%clk 0:02:46]} 6. cxd4 {[%clk 0:02:59]}  Nc6 {[%clk 0:02:46]} 7. Bc4 {[%clk 0:02:58]}  Nb6 {[%clk 0:02:44]} 8. Bb5 {[%clk 0:02:57]}  dxe5 {[%clk 0:02:42]} 9. Nxe5 {[%clk 0:02:58]}  Bd7 {[%clk 0:02:42]} 10. Nc3 {[%clk 0:02:57]}  e6 {[%clk 0:02:41]} 11. a4 {[%clk 0:02:39]}  Nxe5 {[%clk 0:02:40]} 12. dxe5 {[%clk 0:02:35]}  Bb4 {[%clk 0:02:34]} 13. Bxd7+ {[%clk 0:02:13]}  Qxd7 {[%clk 0:02:33]} 14. Qb3 {[%clk 0:02:10]}  Bxc3+ {[%clk 0:02:31]} 15. bxc3 {[%clk 0:02:10]}  O-O {[%clk 0:02:29]} 16. a5 {[%clk 0:02:02]}  Nd5 {[%clk 0:02:27]} 17. c4 {[%clk 0:01:56]}  Ne7 {[%clk 0:02:26]} 18. Ba3 {[%clk 0:01:52]}  Rfc8 {[%clk 0:02:25]} 19. O-O {[%clk 0:01:50]}  Ng6 {[%clk 0:02:23]} 20. Rfe1 {[%clk 0:01:47]}  Qc6 {[%clk 0:02:20]} 21. Rac1 {[%clk 0:01:36]}  Nh4 {[%clk 0:02:20]} 22. f3 {[%clk 0:01:13]}  Nf5 {[%clk 0:02:20]} 23. Re4 {[%clk 0:01:12]}  b6 {[%clk 0:02:17]} 24. axb6 {[%clk 0:01:05]}  axb6 {[%clk 0:02:18]} 25. c5 {[%clk 0:01:05]}  bxc5 {[%clk 0:02:18]} 26. Rxc5 {[%clk 0:00:56]}  Qa6 {[%clk 0:02:18]} 27. Rxc8+ {[%clk 0:00:55]}  Rxc8 {[%clk 0:02:18]} 28. g4 {[%clk 0:00:33]}  Nh4 {[%clk 0:02:16]} 29. Kf2 {[%clk 0:00:20]}  g5 {[%clk 0:02:12]} 30. Bb2 {[%clk 0:00:18]}  Qa5 {[%clk 0:02:04]} 31. Re2 {[%clk 0:00:16]}  Qc5+ {[%clk 0:02:03]} 32. Qe3 {[%clk 0:00:16]}  Ng6 {[%clk 0:02:00]} 33. Qxc5 {[%clk 0:00:14]}  Rxc5 {[%clk 0:01:59]} 34. Kg3 {[%clk 0:00:10]}  Rd5 {[%clk 0:01:58]} 35. h3 {[%clk 0:00:09]}  h6 {[%clk 0:01:56]} 36. Re1 {[%clk 0:00:07]}  Rd3 {[%clk 0:01:57]} 37. Rc1 {[%clk 0:00:06]}  Nh4 {[%clk 0:01:56]} 38. Rc8+ {[%clk 0:00:06]}  Kg7 {[%clk 0:01:54]} 39. Rc3 {[%clk 0:00:07]}  Rd2 {[%clk 0:01:54]} 40. Bc1 {[%clk 0:00:08]}  Rg2# {[%clk 0:01:54]} 0-1


[Site "https://www.chess.com"]

[Event "Titled Tuesday Blitz August 15 Late 2023"]
[White "Djordjevic, Vuk"]
[Black "Boder, Jan"]
[WhiteFideId "902098"]
[BlackFideId "16243226"]
[WhiteElo "2698"]
[BlackElo "2319"]
[Result "1-0"]
[Round "2"]
[TimeControl "180+1"]
[Date "2023.08.15"]
[WhiteClock "0:01:20"]
[BlackClock "0:01:05"]
[Board "76"]

1. d4 {[%clk 0:03:00]}  Nf6 {[%clk 0:02:59]} 2. Bg5 {[%clk 0:03:00]}  c5 {[%clk 0:02:56]} 3. Bxf6 {[%clk 0:03:00]}  gxf6 {[%clk 0:02:56]} 4. d5 {[%clk 0:03:00]}  f5 {[%clk 0:02:54]} 5. c4 {[%clk 0:03:00]}  Bg7 {[%clk 0:02:54]} 6. Qc2 {[%clk 0:03:00]}  O-O {[%clk 0:02:52]} 7. e3 {[%clk 0:03:00]}  d6 {[%clk 0:02:43]} 8. Bd3 {[%clk 0:02:59]}  e6 {[%clk 0:02:41]} 9. Nc3 {[%clk 0:02:59]}  Nd7 {[%clk 0:02:41]} 10. f4 {[%clk 0:02:50]}  Nf6 {[%clk 0:02:39]} 11. dxe6 {[%clk 0:02:03]}  fxe6 {[%clk 0:02:35]} 12. Nf3 {[%clk 0:02:02]}  Bd7 {[%clk 0:02:25]} 13. O-O {[%clk 0:02:01]}  Bc6 {[%clk 0:02:24]} 14. Rae1 {[%clk 0:02:00]}  Qb6 {[%clk 0:02:14]} 15. e4 {[%clk 0:01:53]}  fxe4 {[%clk 0:02:12]} 16. Nxe4 {[%clk 0:01:53]}  Nxe4 {[%clk 0:02:09]} 17. Bxe4 {[%clk 0:01:54]}  Bxe4 {[%clk 0:02:08]} 18. Qxe4 {[%clk 0:01:54]}  Qxb2 {[%clk 0:01:45]} 19. Qxe6+ {[%clk 0:01:53]}  Kh8 {[%clk 0:01:45]} 20. Ng5 {[%clk 0:01:53]}  Qf6 {[%clk 0:01:39]} 21. Qh3 {[%clk 0:01:23]}  h6 {[%clk 0:01:25]} 22. Re6 {[%clk 0:01:22]}  Qd4+ {[%clk 0:01:20]} 23. Kh1 {[%clk 0:01:22]}  Rxf4 {[%clk 0:01:13]} 24. Rxh6+ {[%clk 0:01:20]}  Bxh6 {[%clk 0:01:13]} 25. Qxh6+ {[%clk 0:01:20]}  Kg8 {[%clk 0:01:11]} 26. Qh7+ {[%clk 0:01:20]}  Kf8 {[%clk 0:01:11]} 27. Rxf4+ {[%clk 0:01:20]}  Qxf4 {[%clk 0:01:10]} 28. Ne6+ {[%clk 0:01:20]}  Ke8 {[%clk 0:01:05]} 29. Nxf4 {[%clk 0:01:20]} 1-0


[Site "https://www.chess.com"]

[Event "Titled Tuesday Blitz August 15 Late 2023"]
[White "Szente Varga, Fruzsina"]
[Black "Bjelobrk, Igor"]
[WhiteFideId "712264"]
[BlackFideId "4300726"]
[WhiteElo "2314"]
[BlackElo "2672"]
[Result "1/2-1/2"]
[Round "2"]
[TimeControl "180+1"]
[Date "2023.08.15"]
[WhiteClock "0:00:11"]
[BlackClock "0:00:17"]
[Board "77"]

1. e4 {[%clk 0:03:00]}  e6 {[%clk 0:02:56]} 2. d4 {[%clk 0:03:00]}  d5 {[%clk 0:02:55]} 3. Nd2 {[%clk 0:03:01]}  c5 {[%clk 0:02:54]} 4. exd5 {[%clk 0:03:01]}  exd5 {[%clk 0:02:54]} 5. Bb5+ {[%clk 0:02:52]}  Nc6 {[%clk 0:02:48]} 6. Ngf3 {[%clk 0:02:51]}  cxd4 {[%clk 0:02:45]} 7. O-O {[%clk 0:02:50]}  Bd6 {[%clk 0:02:44]} 8. Nxd4 {[%clk 0:02:37]}  Bxh2+ {[%clk 0:02:43]} 9. Kxh2 {[%clk 0:02:33]}  Qh4+ {[%clk 0:02:42]} 10. Kg1 {[%clk 0:02:33]}  Qxd4 {[%clk 0:02:42]} 11. Bxc6+ {[%clk 0:02:32]}  bxc6 {[%clk 0:02:41]} 12. Re1+ {[%clk 0:02:32]}  Be6 {[%clk 0:02:37]} 13. c3 {[%clk 0:02:22]}  Qb6 {[%clk 0:02:11]} 14. Qg4 {[%clk 0:02:21]}  Nf6 {[%clk 0:01:45]} 15. Qxg7 {[%clk 0:02:14]}  Ke7 {[%clk 0:01:46]} 16. Nf3 {[%clk 0:02:00]}  Rag8 {[%clk 0:01:32]} 17. Rxe6+ {[%clk 0:01:21]}  Kxe6 {[%clk 0:01:33]} 18. Ng5+ {[%clk 0:01:21]}  Kf5 {[%clk 0:01:31]} 19. Qxf7 {[%clk 0:00:51]}  Rxg5 {[%clk 0:01:17]} 20. Bxg5 {[%clk 0:00:51]}  Kxg5 {[%clk 0:01:16]} 21. Qg7+ {[%clk 0:00:50]}  Kf5 {[%clk 0:01:17]} 22. Qxh8 {[%clk 0:00:50]}  Qxb2 {[%clk 0:01:14]} 23. Qc8+ {[%clk 0:00:38]}  Kg6 {[%clk 0:01:11]} 24. Re1 {[%clk 0:00:32]}  Qxc3 {[%clk 0:00:58]} 25. Re3 {[%clk 0:00:27]}  Qc1+ {[%clk 0:00:58]} 26. Kh2 {[%clk 0:00:27]}  h5 {[%clk 0:00:58]} 27. Qe6 {[%clk 0:00:15]}  Kg7 {[%clk 0:00:41]} 28. Qe7+ {[%clk 0:00:15]}  Kg6 {[%clk 0:00:42]} 29. Qe6 {[%clk 0:00:16]}  Qa1 {[%clk 0:00:19]} 30. Rg3+ {[%clk 0:00:15]}  Kh6 {[%clk 0:00:19]} 31. Rf3 {[%clk 0:00:12]}  Kg6 {[%clk 0:00:18]} 32. Rg3+ {[%clk 0:00:11]}  Kh6 {[%clk 0:00:17]} 33. Rf3 {[%clk 0:00:11]}  Kg6 {[%clk 0:00:17]} 34. Rg3+ {[%clk 0:00:11]} 1/2-1/2


[Site "https://www.chess.com"]

[Event "Titled Tuesday Blitz August 15 Late 2023"]
[White "Mikhailov, Viacheslav"]
[Black "Dr_Pepper18"]
[WhiteFideId "4187369"]
[WhiteElo "2663"]
[BlackElo "2310"]
[Result "1-0"]
[Round "2"]
[TimeControl "180+1"]
[Date "2023.08.15"]
[WhiteClock "0:01:23"]
[BlackClock "0:00:12"]
[Board "78"]

1. Nf3 {[%clk 0:02:54]}  Nf6 {[%clk 0:02:59]} 2. g3 {[%clk 0:02:53]}  g6 {[%clk 0:03:00]} 3. Bg2 {[%clk 0:02:54]}  Bg7 {[%clk 0:03:00]} 4. O-O {[%clk 0:02:54]}  O-O {[%clk 0:03:01]} 5. c4 {[%clk 0:02:55]}  d6 {[%clk 0:02:58]} 6. Nc3 {[%clk 0:02:55]}  c5 {[%clk 0:02:58]} 7. d4 {[%clk 0:02:55]}  cxd4 {[%clk 0:02:56]} 8. Nxd4 {[%clk 0:02:56]}  a6 {[%clk 0:02:55]} 9. b3 {[%clk 0:02:56]}  Qc7 {[%clk 0:02:39]} 10. Bb2 {[%clk 0:02:56]}  Nc6 {[%clk 0:02:38]} 11. Rc1 {[%clk 0:02:56]}  Nxd4 {[%clk 0:02:31]} 12. Qxd4 {[%clk 0:02:57]}  Bd7 {[%clk 0:02:31]} 13. Qh4 {[%clk 0:02:43]}  Bc6 {[%clk 0:02:21]} 14. Rfd1 {[%clk 0:02:34]}  Rac8 {[%clk 0:02:20]} 15. Qd4 {[%clk 0:02:27]}  Ne4 {[%clk 0:02:03]} 16. Qxg7+ {[%clk 0:02:19]}  Kxg7 {[%clk 0:02:03]} 17. Nd5+ {[%clk 0:02:20]}  Kg8 {[%clk 0:02:00]} 18. Nxc7 {[%clk 0:02:20]}  Rxc7 {[%clk 0:02:00]} 19. Bd4 {[%clk 0:02:16]}  Ng5 {[%clk 0:01:44]} 20. Bb6 {[%clk 0:02:05]}  Rcc8 {[%clk 0:01:42]} 21. f3 {[%clk 0:02:00]}  Ne6 {[%clk 0:01:17]} 22. h4 {[%clk 0:01:56]}  Bd7 {[%clk 0:01:17]} 23. c5 {[%clk 0:01:51]}  Bb5 {[%clk 0:00:57]} 24. cxd6 {[%clk 0:01:50]}  exd6 {[%clk 0:00:58]} 25. Kf2 {[%clk 0:01:46]}  d5 {[%clk 0:00:51]} 26. f4 {[%clk 0:01:38]}  h5 {[%clk 0:00:23]} 27. Bxd5 {[%clk 0:01:36]}  Bc6 {[%clk 0:00:21]} 28. Bxc6 {[%clk 0:01:34]}  bxc6 {[%clk 0:00:20]} 29. Rd6 {[%clk 0:01:33]}  c5 {[%clk 0:00:19]} 30. Rc4 {[%clk 0:01:33]}  Rfe8 {[%clk 0:00:17]} 31. e3 {[%clk 0:01:31]}  Ng7 {[%clk 0:00:17]} 32. Rxc5 {[%clk 0:01:29]}  Rxc5 {[%clk 0:00:15]} 33. Bxc5 {[%clk 0:01:30]}  Nf5 {[%clk 0:00:15]} 34. Rxa6 {[%clk 0:01:30]}  Rc8 {[%clk 0:00:16]} 35. b4 {[%clk 0:01:30]}  Rd8 {[%clk 0:00:17]} 36. Bd4 {[%clk 0:01:27]}  Rc8 {[%clk 0:00:17]} 37. b5 {[%clk 0:01:22]}  Rc2+ {[%clk 0:00:16]} 38. Ke1 {[%clk 0:01:23]}  Nxd4 {[%clk 0:00:12]} 39. exd4 {[%clk 0:01:23]} 1-0


[Site "https://www.chess.com"]